{"text_format":"1","workbook":"xlsx","n_sheets":4,"sheets":["Dashboard","Drainage","StrGTX","StrGeogrid"],"not_rendered":{"charts":0,"images":0,"macros":1,"external_links":0,"defined_names":2,"comments":3,"pivot_tables":0},"unopened":[],"bounds":{"document_bytes":16777216,"sheet_cells":100000,"rows_first":2000,"rows_last":500,"rows_between":2000,"halvings":0,"cell_chars":16384,"cell_head_chars":4096},"cells_cut":0,"cells_raw":0,"read":"whole","date_system":"1900"}

{"sheet":"Dashboard","index":0,"n_rows":34,"n_cols":24,"rows_kept":34,"cut":false,"hidden":false,"merged":[[33,19,33,22],[33,23,33,24],[18,2,18,12],[22,5,22,12],[23,5,23,12],[20,5,20,12],[19,5,19,12],[21,5,21,12],[19,1,19,4],[23,1,23,4],[22,1,22,4],[21,1,21,4],[20,1,20,4],[11,16,11,17],[11,18,11,22],[7,16,7,17],[7,18,7,22],[8,16,8,17],[8,18,8,22],[9,16,9,17],[9,18,9,22],[3,18,3,22],[4,16,4,17],[4,18,4,22],[5,16,5,17],[5,18,5,22],[3,16,3,17],[6,16,6,17],[6,18,6,22],[10,8,10,9],[10,10,10,14],[11,8,11,9],[11,10,11,14],[7,8,7,9],[7,10,7,14],[8,8,8,9],[8,10,8,14],[9,8,9,9],[9,10,9,14],[6,8,6,9],[6,10,6,14],[10,16,10,17],[10,18,10,22],[0,16,0,22],[1,16,1,17],[1,18,1,22],[2,16,2,17],[2,18,2,22],[3,10,3,14],[4,8,4,9],[4,10,4,14],[5,8,5,9],[5,10,5,14],[8,2,8,6],[9,2,9,6],[10,2,10,6],[11,2,11,6],[0,8,0,14],[1,8,1,9],[1,10,1,14],[2,8,2,9],[2,10,2,14],[3,8,3,9],[0,0,0,6],[3,2,3,6],[4,2,4,6],[5,2,5,6],[6,2,6,6],[7,2,7,6],[7,0,7,1],[8,0,8,1],[9,0,9,1],[10,0,10,1],[11,0,11,1],[4,0,4,1],[5,0,5,1],[6,0,6,1],[1,2,1,6],[2,2,2,6],[1,0,1,1],[2,0,2,1],[3,0,3,1]]}
["DRAINAGE GEOTEXTILE",null,null,null,null,null,null,null,"STRUCTURAL GEOTEXTILE",null,null,null,null,null,null,null,"STRUCTURAL GEOGRID"]
["Product",null,"Product Name",null,null,null,null,null,"Product",null,"Product Name",null,null,null,null,null,"Product",null,"Product Name"]
[1,null,null,null,null,null,null,null,1,null,null,null,null,null,null,null,1]
[2,null,null,null,null,null,null,null,2,null,null,null,null,null,null,null,2]
[3,null,null,null,null,null,null,null,3,null,null,null,null,null,null,null,3]
[4,null,null,null,null,null,null,null,4,null,null,null,null,null,null,null,4]
[5,null,null,null,null,null,null,null,5,null,null,null,null,null,null,null,5]
[6,null,null,null,null,null,null,null,6,null,null,null,null,null,null,null,6]
[7,null,null,null,null,null,null,null,7,null,null,null,null,null,null,null,7]
[8,null,null,null,null,null,null,null,8,null,null,null,null,null,null,null,8]
[9,null,null,null,null,null,null,null,9,null,null,null,null,null,null,null,9]
[10,null,null,null,null,null,null,null,10,null,null,null,null,null,null,null,10]
[]
[]
[]
[]
["*When uploading this file to PATH, convert this file from .xlsm (macro-enabled) to .xslx (normal excel file) to prevent uploading error"]
[]
[null,null,"Prefill Data into Form before generating worksheets"]
[null,"Application Date:"]
[null,"Company Name:"]
[null,"Contact Name:"]
[null,"Phone:"]
[null,"Email:"]
[]
[]
[]
[]
[]
[]
[]
[]
[]
[null,null,null,null,null,null,null,null,null,null,null,null,null,null,null,null,null,null,null,"Form Revised Date: ",null,null,null,"2024-02-27"]

{"sheet":"Drainage","index":1,"n_rows":35,"n_cols":13,"rows_kept":35,"cut":false,"hidden":true,"merged":[[26,4,26,7],[26,0,26,3],[26,10,26,11],[4,9,4,11],[3,9,3,11],[15,11,17,11],[19,11,21,11],[14,0,14,11],[19,10,21,10],[15,1,17,4],[15,5,17,6],[15,7,17,7],[15,8,17,8],[15,9,17,9],[20,1,21,1],[20,2,21,2],[0,0,0,11],[9,0,9,1],[10,0,10,1],[10,2,10,5],[9,2,9,5],[5,2,5,6],[4,3,4,6],[5,9,5,11],[10,7,10,10],[9,7,9,10],[20,3,21,3],[20,4,21,4],[19,7,21,7],[19,8,21,8],[19,9,21,9],[28,0,29,11],[3,0,3,1],[4,0,4,2],[5,0,5,1],[3,2,3,4],[20,5,21,6],[15,0,18,0],[19,0,21,0],[15,10,17,10],[18,1,18,4],[18,5,18,6],[19,1,19,2],[19,3,19,4],[11,0,11,1],[11,2,11,5],[11,7,11,10]]}
["Geotextile - FDOT APL Data Results Form"]
[]
[]
["Date of Application:",null,null,null,null,null,null,null,"Contact:"]
["Type of geotextile company?",null,null,null,null,null,null,null,"Phone:"]
["Company Name:",null,null,null,null,null,null,null,"Email:"]
[]
[]
[]
["Product Name:",null,null,null,null,null,null,"Is the product a woven monofilament geotextile?"]
["Product Structure:",null,null,null,null,null,null,"Is the product a woven geotextile?"]
["Drainage type(s):",null,null,null,null,null,null,"Does the product contain slit film?"]
[]
[]
["ATTACH CERTIFIED INDEPENDENT TEST RESULTS TO JUSTIFY SUBMITTED VALUES"]
["Test Name / Designation","Grab",null,null,null,"Trapezoidal Tear",null,"50 mm Puncture","Permittivity","Apparent Opening Size","Mass/Area","UV Resistance"]
[]
[]
[null,"ASTM D4632",null,null,null,"ASTM D4533",null,"ASTM D6241","ASTM D4491","ASTM D4751","ASTM D5261","ASTM D4355"]
["Units","MD",null,"XD",null,"MD","XD","Strength (lbs.)","1/sec.","mm","oz/yd2","% Strength Retained @ 500 hours"]
[null,"Strength (lbs.)","Strain (%)","Strength (lbs.)","Strain (%)","Strength (lbs)"]
[]
["Mean"]
["COV(%)"]
["MARV"]
[]
["Method of Acceptance for UV Resistance: ",null,null,null,"",null,null,null,null,{"$f":"IF(E27=\"Lightest product in the product line\",\"Lightest Product Name:\",\"\")","v":""}]
[]
["NOTE: UV resistance may be reported for the lightest product in the product line, if so provide the lightest product name on a company letterhead with independent test results and ensure the letter is signed and dated."]
[]
[]
["Required Attachments:",null,null,null,null,null,null,null,null,null,null,null,"Lightest product in the product line"]
[{"$f":"IF(D5=\"Private Label Company\",\" - Private label agreement letter\",\" - Independent test results for the seven ASTM tests\")","v":" - Independent test results for the seven ASTM tests"},null,null,null,null,null,null,null,null,null,null,null,{"$f":"IF(C10=\"\",\"\",C10)","v":""}]
[{"$f":"IF(E27=\"Lightest product in the product line\",\" - Letter for the lightest product in the product line on company letterhead\",IF(A33=\" - Independent test results for the seven ASTM tests\",\"\",\" - Independent test results for the seven ASTM tests\"))","v":""}]
[{"$f":"IF(OR(A33=\" - Independent test results for the seven ASTM tests\",A34=\" - Independent test results for the seven ASTM tests\"),\"\",\" - Independent test results for the seven ASTM tests\")","v":""}]

{"sheet":"StrGTX","index":2,"n_rows":74,"n_cols":43,"rows_kept":74,"cut":false,"hidden":true,"merged":[[33,4,33,7],[32,4,32,7],[27,8,27,10],[22,3,22,7],[21,3,21,7],[34,0,35,3],[35,8,35,10],[34,8,34,10],[33,8,33,10],[28,0,28,7],[28,8,28,10],[56,4,66,13],[73,4,83,13],[16,24,16,26],[17,24,17,26],[37,8,37,10],[38,0,38,7],[38,8,38,17],[39,0,44,7],[39,9,39,17],[40,9,40,17],[41,9,41,17],[42,9,42,17],[43,9,43,17],[44,9,44,17],[46,6,46,17],[46,0,46,5],[23,11,23,14],[22,11,22,14],[19,11,21,14],[27,11,27,14],[36,15,36,17],[45,0,45,2],[45,3,45,4],[45,5,45,7],[45,8,45,9],[45,10,45,17],[15,27,15,28],[2,23,4,39],[1,22,1,39],[5,23,6,39],[7,23,8,39],[15,24,15,26],[14,24,14,26],[14,27,14,28],[7,22,8,22],[2,22,4,22],[5,22,6,22],[32,15,35,17],[31,15,31,17],[16,27,16,28],[17,27,17,28],[19,8,19,10],[37,15,37,17],[36,11,37,14],[32,11,35,14],[28,11,28,14],[27,15,27,17],[28,15,28,17],[36,8,36,10],[29,15,30,17],[29,11,31,14],[36,0,37,3],[26,8,26,10],[27,0,27,7],[26,3,26,7],[17,0,26,0],[19,3,19,7],[18,3,18,7],[29,0,30,3],[30,4,30,7],[29,4,29,7],[31,0,31,7],[32,8,32,10],[31,8,31,10],[30,8,30,10],[29,8,29,10],[32,0,33,3],[37,4,37,7],[36,4,36,7],[35,4,35,7],[34,4,34,7],[6,16,6,17],[5,13,5,17],[5,3,5,9],[3,13,3,14],[3,6,3,7],[6,12,6,13],[7,0,7,17],[8,15,8,17],[8,11,8,14],[6,10,6,11],[10,0,10,7],[11,0,11,7],[14,0,15,2],[13,8,13,10],[14,8,14,10],[14,3,14,7],[13,3,13,7],[12,3,12,7],[12,0,13,2],[15,3,15,7],[11,8,11,10],[10,8,10,10],[9,8,9,10],[17,15,26,17],[16,15,16,17],[9,11,9,14],[9,15,9,17],[10,15,10,17],[11,11,15,14],[14,15,15,17],[12,15,13,17],[11,15,11,17],[0,41,0,42],[6,14,6,15],[1,0,1,17],[0,0,0,17],[2,4,2,6],[2,12,2,14],[5,0,5,2],[5,10,5,12],[9,0,9,7],[2,0,2,1],[3,15,3,17],[2,2,2,3],[2,7,2,11],[2,15,2,17],[7,19,8,19],[7,20,8,20],[8,8,8,10],[5,19,5,20],[3,0,3,1],[8,0,8,7],[3,2,3,5],[3,8,3,12],[6,0,6,9],[4,0,4,17],[16,0,16,7],[20,3,20,7],[10,11,10,14],[17,8,17,10],[18,11,18,14],[22,8,22,10],[21,8,21,10],[20,8,20,10],[25,8,25,10],[24,8,24,10],[23,8,23,10],[18,8,18,10],[16,11,16,14],[25,3,25,7],[24,3,24,7],[23,3,23,7],[17,11,17,14],[17,1,21,2],[22,1,26,2],[24,11,26,14],[16,8,16,10],[15,8,15,10],[17,3,17,7],[12,8,12,10]]}
["Woven Geotextile (985)",null,null,null,null,null,null,null,null,null,null,null,null,null,null,null,null,null,null,null,null,null,null,null,null,null,null,null,null,null,null,null,null,null,null,null,null,null,null,null,null,"R Type (True/False)"]
["Company and Contact Information",null,null,null,null,null,null,null,null,null,null,null,null,null,null,null,null,null,null,null,null,null,"Notes",null,null,null,null,null,null,null,null,null,null,null,null,null,null,null,null,null,null,"R-1",false]
["App. Date:",null,null,null,"Company Name:",null,null,null,null,null,null,null,"Company Type:",null,null,null,null,null,null,null,null,null,1,{"$f":"IF(AND(P3=\"Manufacturer\",Q7=\"Uni-axial\"),AP48,IF(AND(P3=\"Manufacturer\",Q7=\"Bi-axial\"),AP48,IF(AND(P3<>\"Manufacturer\",Q7=\"Uni-axial\"),AP49,IF(AND(P3<>\"Manufacturer\",Q7=\"Bi-axial\"),AP49,\"\"))))","v":"Attach private label/converter agreement letter from the source manufacturer, product data sheet, certified independent test results for all applicable parameters, photographs of the label that includes Roll and Lot #, Product Name, Production date, NTPEP ID, and \"NTPEP Listed\" Statement."},null,null,null,null,null,null,null,null,null,null,null,null,null,null,null,null,null,"R-2",false]
["Contact:",null,null,null,null,null,"E-mail:",null,null,null,null,null,null,"Phone:",null,null,null,null,null,null,null,null,null,null,null,null,null,null,null,null,null,null,null,null,null,null,null,null,null,null,null,"R-3",false]
["Product Information",null,null,null,null,null,null,null,null,null,null,null,null,null,null,null,null,null,null,null,null,null,null,null,null,null,null,null,null,null,null,null,null,null,null,null,null,null,null,null,null,"R-4",false]
["Product Name:",null,null,null,null,null,null,null,null,null,"Prod. Structure:",null,null,null,null,null,null,null,null,"Note: Red indicates missing data",null,null,2,{"$f":"IF(AQ2=FALSE,\"\",IF(AND($AQ$2=TRUE,I21<4800,I26<4800),\"Doesn't meet the minimum ultimate tensile strength requirements for R-1 structural type application (GRS IBS).\",\"\"))","v":""},null,null,null,null,null,null,null,null,null,null,null,null,null,null,null,null,null,"R-5",false]
["Structural Type(s) Request:",null,null,null,null,null,null,null,null,null,"On NTPEP:",null,null,null,"Axial Type:",null,"Bi-axial",null,null,null,null,null,null,null,null,null,null,null,null,null,null,null,null,null,null,null,null,null,null,null,null,null,{"$f":"IF(AND(AQ2=FALSE,AQ3=FALSE,AQ4=FALSE,AQ5=FALSE,AQ6=FALSE),\"Missing\",\"Good\")","v":"Missing"}]
["Specs 985 Physical Requirements (Test Results)",null,null,null,null,null,null,null,null,null,null,null,null,null,null,null,null,null,null,"Independent Lab Mean Value","Report Page #",null,3,"Other: "]
["Property Test Method",null,null,null,null,null,null,null,"MARV/Design Value",null,null,"Structural App. Type",null,null,null,"Test Method"]
["Permittivity (sec-1)",null,null,null,null,null,null,null,null,null,null,"R-1,2,3,4,5",null,null,null,"ASTM D4491",null,null,null,null,null,null,null,null,null,null,null,null,null,null,null,null,null,null,null,null,null,null,null,null,null,{"$f":"IF(ISBLANK(I10),\"Missing\",\"Good\")","v":"Missing"},{"$f":"IF(ISBLANK(T10),\"Missing\",\"Good\")","v":"Missing"}]
["UV Stability (Min. Retained Strength @ 500 hrs.)",null,null,null,null,null,null,null,null,null,null,"R-3",null,null,null,"ASTM D4355",null,null,null,null,null,null,null,null,null,null,null,null,null,null,null,null,null,null,null,null,null,null,null,null,null,{"$f":"IF(AND($AQ$4=TRUE,ISBLANK(I11)),\"Missing\",\"Good\")","v":"Good"},{"$f":"IF(AND($AQ$4=TRUE,ISBLANK(T11)),\"Missing\",\"Good\")","v":"Good"}]
["Puncture Strength (lbs)",null,null,null,null,null,null,null,null,null,null,"R-5",null,null,null,"ASTM D6241",null,null,null,null,null,null,null,null,null,null,null,null,null,null,null,null,null,null,null,null,null,null,null,null,null,{"$f":"IF(AND($AQ$6=TRUE,ISBLANK(I12)),\"Missing\",\"Good\")","v":"Good"},{"$f":"IF(AND($AQ$6=TRUE,ISBLANK(T12)),\"Missing\",\"Good\")","v":"Good"}]
["Grab Strength (lbs)",null,null,"Machine Direction",null,null,null,null,null,null,null,null,null,null,null,"ASTM D4632",null,null,null,null,null,null,null,null,null,null,null,null,null,null,null,null,null,null,null,null,null,null,null,null,null,{"$f":"IF(AND($AQ$6=TRUE,ISBLANK(I13)),\"Missing\",\"Good\")","v":"Good"},{"$f":"IF(AND($AQ$6=TRUE,ISBLANK(T13)),\"Missing\",\"Good\")","v":"Good"}]
[null,null,null,"Cross Direction",null,null,null,null,null,null,null,null,null,null,null,null,null,null,null,null,null,null,null,null,null,null,null,null,null,null,null,null,null,null,null,null,null,null,null,null,null,{"$f":"IF(AND($AQ$6=TRUE,ISBLANK(I14)),\"Missing\",\"Good\")","v":"Good"},{"$f":"IF(AND($AQ$6=TRUE,ISBLANK(T14)),\"Missing\",\"Good\")","v":"Good"}]
["Tear Strength (lbs)",null,null,"Machine Direction",null,null,null,null,null,null,null,null,null,null,null,"ASTM D4533",null,null,null,null,null,null,null,null,"Calculate?",null,null,"Tcreep",null,null,null,null,null,null,null,null,null,null,null,null,null,{"$f":"IF(AND($AQ$6=TRUE,ISBLANK(I15)),\"Missing\",\"Good\")","v":"Good"},{"$f":"IF(AND($AQ$6=TRUE,ISBLANK(T15)),\"Missing\",\"Good\")","v":"Good"}]
[null,null,null,"Cross Direction",null,null,null,null,null,null,null,null,null,null,null,null,null,null,null,null,null,null,null,null,"Weakest ",null,null,{"$f":"IF(AND(ISBLANK(I21),ISBLANK(I26)),\"\",IF(AND(ISBLANK(I21),ISBLANK(I26)=FALSE),\"XD\",IF(AND(ISBLANK(I21)=FALSE,ISBLANK(I26)),\"MD\",IF(I21<=I26,\"MD\",\"XD\"))))","v":""},null,null,null,null,null,null,null,null,null,null,null,null,null,{"$f":"IF($Q$7=\"Uni-axial\",\"Good\",IF(AND($AQ$6=TRUE,ISBLANK(I16)),\"Missing\",\"Good\"))","v":"Good"},{"$f":"IF($Q$7=\"Uni-axial\",\"Good\",IF(AND($AQ$6=TRUE,ISBLANK(T16)),\"Missing\",\"Good\"))","v":"Good"}]
["Apparent Opening Size (A.O.S) mm",null,null,null,null,null,null,null,null,null,null,"R-1,2,3,4,5",null,null,null,"ASTM D4751",null,null,null,null,null,null,null,null,"MARV",null,null,{"$f":"IF(AND(AB15=\"Creep RF\",AB16=\"MD\"),I21/I30,IF(AND(AB15=\"Creep RF\",AB16=\"XD\"),I26/I31,IF(AND(AB15=\"Tcreep\",AB16=\"MD\"),I21/I32,IF(AND(AB15=\"Tcreep\",AB16=\"XD\"),I26/I32,\"\"))))","v":""},null,null,null,null,null,null,null,null,null,null,null,null,null,{"$f":"IF(ISBLANK(I17),\"Missing\",\"Good\")","v":"Missing"},{"$f":"IF(ISBLANK(T17),\"Missing\",\"Good\")","v":"Missing"}]
["Tensile Strength (lbs/ft)","Machine Direction",null,"2% Strain",null,null,null,null,null,null,null,"R-1,3",null,null,null,"ASTM D4595",null,null,null,null,null,null,null,null,"Independent",null,null,{"$f":"IF(AND(AB15=\"Creep RF\",AB16=\"MD\"),T21/T30,IF(AND(AB15=\"Creep RF\",AB16=\"XD\"),T26/T31,IF(AND(AB15=\"Tcreep\",AB16=\"MD\"),T21/T32,IF(AND(AB15=\"Tcreep\",AB16=\"XD\"),T26/T32,\"\"))))","v":""},null,null,null,null,null,null,null,null,null,null,null,null,null,{"$f":"IF(AND(OR($AQ$2=TRUE,$AQ$4=TRUE),ISBLANK(I18)),\"Missing\",\"Good\")","v":"Good"},{"$f":"IF(AND(OR($AQ$2=TRUE,$AQ$4=TRUE),ISBLANK(T18)),\"Missing\",\"Good\")","v":"Good"}]
[null,null,null,"5% Strain",null,null,null,null,null,null,null,"R-2,3,4,5",null,null,null,null,null,null,null,null,null,null,null,null,null,null,null,null,null,null,null,null,null,null,null,null,null,null,null,null,null,{"$f":"IF(AND(OR($AQ$3=TRUE,$AQ$4=TRUE,$AQ$5=TRUE,$AQ$6=TRUE),ISBLANK(I19)),\"Missing\",\"Good\")","v":"Good"},{"$f":"IF(AND(OR($AQ$3=TRUE,$AQ$4=TRUE,$AQ$5=TRUE,$AQ$6=TRUE),ISBLANK(T19)),\"Missing\",\"Good\")","v":"Good"}]
[null,null,null,"10% Strain",null,null,null,null,null,null,null,"R-1,2,3,4,5",null,null,null,null,null,null,null,null,null,null,"*Rename the excel sheet if needed to print the appropriate product name in the footer area",null,null,null,null,null,null,null,null,null,null,null,null,null,null,null,null,null,null,{"$f":"IF(ISBLANK(I20),\"Missing\",\"Good\")","v":"Missing"},{"$f":"IF(ISBLANK(T20),\"Missing\",\"Good\")","v":"Missing"}]
[null,null,null,"Ultimate (Tult)",null,null,null,null,null,null,null,null,null,null,null,null,null,null,null,null,null,null,"*When uploading this file to PATH, convert this file from .xlsm (macro-enabled) to .xslx (normal excel file) to prevent uploading error",null,null,null,null,null,null,null,null,null,null,null,null,null,null,null,null,null,null,{"$f":"IF(ISBLANK(I21),\"Missing\",\"Good\")","v":"Missing"},{"$f":"IF(ISBLANK(T21),\"Missing\",\"Good\")","v":"Missing"}]
[null,null,null,"Strain @ Tult",null,null,null,null,null,null,null,null,null,null,null,null,null,null,null,null,null,null,null,null,null,null,null,null,null,null,null,null,null,null,null,null,null,null,null,null,null,{"$f":"IF(ISBLANK(I22),\"Missing\",\"Good\")","v":"Missing"},{"$f":"IF(ISBLANK(T22),\"Missing\",\"Good\")","v":"Missing"}]
[null,"Cross \nDirection",null,"2% Strain",null,null,null,null,null,null,null,"R-1,3",null,null,null,null,null,null,null,null,null,null,null,null,null,null,null,null,null,null,null,null,null,null,null,null,null,null,null,null,null,{"$f":"IF($Q$7=\"Uni-axial\",\"Good\",IF(AND(OR($AQ$2=TRUE,$AQ$4=TRUE),ISBLANK(I23)),\"Missing\",\"Good\"))","v":"Good"},{"$f":"IF($Q$7=\"Uni-axial\",\"Good\",IF(AND(OR($AQ$2=TRUE,$AQ$4=TRUE),ISBLANK(T23)),\"Missing\",\"Good\"))","v":"Good"}]
[null,null,null,"5% Strain",null,null,null,null,null,null,null,"R-2,3,4,5",null,null,null,null,null,null,null,null,null,null,null,null,null,null,null,null,null,null,null,null,null,null,null,null,null,null,null,null,null,{"$f":"IF($Q$7=\"Uni-axial\",\"Good\",IF(AND(OR($AQ$3=TRUE,$AQ$4=TRUE,$AQ$5=TRUE,$AQ$6=TRUE),ISBLANK(I24)),\"Missing\",\"Good\"))","v":"Good"},{"$f":"IF($Q$7=\"Uni-axial\",\"Good\",IF(AND(OR($AQ$3=TRUE,$AQ$4=TRUE,$AQ$5=TRUE,$AQ$6=TRUE),ISBLANK(T24)),\"Missing\",\"Good\"))","v":"Good"}]
[null,null,null,"10% Strain",null,null,null,null,null,null,null,"R-1,2,3,4,5",null,null,null,null,null,null,null,null,null,null,null,null,null,null,null,null,null,null,null,null,null,null,null,null,null,null,null,null,null,{"$f":"IF($Q$7=\"Uni-axial\",\"Good\",IF(ISBLANK(I25),\"Missing\",\"Good\"))","v":"Missing"},{"$f":"IF($Q$7=\"Uni-axial\",\"Good\",IF(ISBLANK(T25),\"Missing\",\"Good\"))","v":"Missing"}]
[null,null,null,"Ultimate (Tult)",null,null,null,null,null,null,null,null,null,null,null,null,null,null,null,null,null,null,null,null,null,null,null,null,null,null,null,null,null,null,null,null,null,null,null,null,null,{"$f":"IF($Q$7=\"Uni-axial\",\"Good\",IF(ISBLANK(I26),\"Missing\",\"Good\"))","v":"Missing"},{"$f":"IF($Q$7=\"Uni-axial\",\"Good\",IF(ISBLANK(T26),\"Missing\",\"Good\"))","v":"Missing"}]
[null,null,null,"Strain @ Tult",null,null,null,null,null,null,null,null,null,null,null,null,null,null,null,null,null,null,null,null,null,null,null,null,null,null,null,null,null,null,null,null,null,null,null,null,null,{"$f":"IF($Q$7=\"Uni-axial\",\"Good\",IF(ISBLANK(I27),\"Missing\",\"Good\"))","v":"Missing"},{"$f":"IF($Q$7=\"Uni-axial\",\"Good\",IF(ISBLANK(T27),\"Missing\",\"Good\"))","v":"Missing"}]
["Coefficient of Interaction, Ci (dim.)",null,null,null,null,null,null,null,null,null,null,"R-1,2,3",null,null,null,"ASTM D5321/D6706",null,null,null,null,null,null,null,null,null,null,null,null,null,null,null,null,null,null,null,null,null,null,null,null,null,{"$f":"IF(AND(OR($AQ$2=TRUE,$AQ$3=TRUE,$AQ$4=TRUE),ISBLANK(I28)),\"Missing\",\"Good\")","v":"Good"},{"$f":"IF(AND(OR($AQ$2=TRUE,$AQ$3=TRUE,$AQ$4=TRUE),ISBLANK(T28)),\"Missing\",\"Good\")","v":"Good"}]
["Scale Correction Factor, α (dim.)",null,null,null,null,null,null,null,null,null,null,"R-3",null,null,null,"ASTM D6706",null,null,null,null,null,null,null,null,null,null,null,null,null,null,null,null,null,null,null,null,null,null,null,null,null,{"$f":"IF(AND(OR($AQ$2=TRUE,$AQ$4=TRUE),ISBLANK(I29)),\"Missing\",\"Good\")","v":"Good"},{"$f":"IF(AND(OR($AQ$2=TRUE,$AQ$4=TRUE),ISBLANK(T29)),\"Missing\",\"Good\")","v":"Good"}]
["Creep Resistance -Tcreep (lbs/ft)",null,null,null,"Machine Direction",null,null,null,null,null,null,"R-2,3",null,null,null,"ASTM D5262",null,null,null,null,null,null,null,null,null,null,null,null,null,null,null,null,null,null,null,null,null,null,null,null,null,{"$f":"IF(AND(OR($AQ$3=TRUE,$AQ$4=TRUE),ISBLANK(I30)),\"Missing\",\"Good\")","v":"Good"},{"$f":"IF(AND(OR($AQ$3=TRUE,$AQ$4=TRUE),ISBLANK(T30)),\"Missing\",\"Good\")","v":"Good"}]
[null,null,null,null,"Cross Direction",null,null,null,null,null,null,null,null,null,null,null,null,null,null,null,null,null,null,null,null,null,null,null,null,null,null,null,null,null,null,null,null,null,null,null,null,{"$f":"IF($Q$7=\"Uni-axial\",\"Good\",IF(AND(OR($AQ$3=TRUE,$AQ$4=TRUE),ISBLANK(I31)),\"Missing\",\"Good\"))","v":"Good"},{"$f":"IF($Q$7=\"Uni-axial\",\"Good\",IF(AND(OR($AQ$3=TRUE,$AQ$4=TRUE),ISBLANK(T31)),\"Missing\",\"Good\"))","v":"Good"}]
["Creep Reduction Factor (Tult/Tcreep)",null,null,null,null,null,null,null,null,null,null,null,null,null,null,"--",null,null,null,null,null,null,null,null,null,null,null,null,null,null,null,null,null,null,null,null,null,null,null,null,null,{"$f":"IF(AND(OR($AQ$3=TRUE,$AQ$4=TRUE),ISBLANK(I32)),\"Missing\",\"Good\")","v":"Good"},{"$f":"IF(AND(OR($AQ$3=TRUE,$AQ$4=TRUE),ISBLANK(T32)),\"Missing\",\"Good\")","v":"Good"}]
["Installation Damage (RFID)",null,null,null,"Sand",null,null,null,null,null,null,"R-2,3,4",null,null,null,"AASHTO R69",null,null,null,null,null,null,null,null,null,null,null,null,null,null,null,null,null,null,null,null,null,null,null,null,null,{"$f":"IF(AND(OR($AQ$3=TRUE,$AQ$4=TRUE,$AQ$5=TRUE),ISBLANK(I33)),\"Missing\",\"Good\")","v":"Good"},{"$f":"IF(AND(OR($AQ$3=TRUE,$AQ$4=TRUE,$AQ$5=TRUE),ISBLANK(T33)),\"Missing\",\"Good\")","v":"Good"}]
[null,null,null,null,"Limestone",null,null,null,null,null,null,null,null,null,null,null,null,null,null,null,null,null,null,null,null,null,null,null,null,null,null,null,null,null,null,null,null,null,null,null,null,{"$f":"IF(AND(OR($AQ$3=TRUE,$AQ$4=TRUE,$AQ$5=TRUE),ISBLANK(I34)),\"Missing\",\"Good\")","v":"Good"},{"$f":"IF(AND(OR($AQ$3=TRUE,$AQ$4=TRUE,$AQ$5=TRUE),ISBLANK(T34)),\"Missing\",\"Good\")","v":"Good"}]
["Durability (RFD)",null,null,null,"Chemical",null,null,null,null,null,null,null,null,null,null,null,null,null,null,null,null,null,null,null,null,null,null,null,null,null,null,null,null,null,null,null,null,null,null,null,null,{"$f":"IF(AND(OR($AQ$3=TRUE,$AQ$4=TRUE,$AQ$5=TRUE),ISBLANK(I35)),\"Missing\",\"Good\")","v":"Good"},{"$f":"IF(AND(OR($AQ$3=TRUE,$AQ$4=TRUE,$AQ$5=TRUE),ISBLANK(T35)),\"Missing\",\"Good\")","v":"Good"}]
[null,null,null,null,"Biological",null,null,null,null,null,null,null,null,null,null,null,null,null,null,null,null,null,null,null,null,null,null,null,null,null,null,null,null,null,null,null,null,null,null,null,null,{"$f":"IF(AND(OR($AQ$3=TRUE,$AQ$4=TRUE,$AQ$5=TRUE),ISBLANK(I36)),\"Missing\",\"Good\")","v":"Good"},{"$f":"IF(AND(OR($AQ$3=TRUE,$AQ$4=TRUE,$AQ$5=TRUE),ISBLANK(T36)),\"Missing\",\"Good\")","v":"Good"}]
["Joint Strength (RFj)",null,null,null,"Mechanical",null,null,null,null,null,null,"R-2,3",null,null,null,"GRI: GT7",null,null,null,null,null,null,null,null,null,null,null,null,null,null,null,null,null,null,null,null,null,null,null,null,null,{"$f":"IF(AND(OR($AQ$3=TRUE,$AQ$4=TRUE),ISBLANK(I37)),\"Missing\",\"Good\")","v":"Good"},{"$f":"IF(AND(OR($AQ$3=TRUE,$AQ$4=TRUE),ISBLANK(T37)),\"Missing\",\"Good\")","v":"Good"}]
[null,null,null,null,"Sewn",null,null,null,null,null,null,null,null,null,null,"ASTM D4884",null,null,null,null,null,null,null,null,null,null,null,null,null,null,null,null,null,null,null,null,null,null,null,null,null,{"$f":"IF(AND(OR($AQ$3=TRUE,$AQ$4=TRUE),ISBLANK(J38)),\"Missing\",\"Good\")","v":"Good"},{"$f":"IF(AND(OR($AQ$3=TRUE,$AQ$4=TRUE),ISBLANK(T38)),\"Missing\",\"Good\")","v":"Good"}]
["Limitations/Notes",null,null,null,null,null,null,null,"Structural Application"]
[null,null,null,null,null,null,null,null,"Type","Description"]
[null,null,null,null,null,null,null,null,"R-1","Geosynthetic Reinforced Soil (GRS-IBS)"]
[null,null,null,null,null,null,null,null,"R-2","Reinforcement of foundations over soft soils (FDM Ch.263)"]
[null,null,null,null,null,null,null,null,"R-3","Reinforced Soil Slopes (FDM, Ch.263)"]
[null,null,null,null,null,null,null,null,"R-4","Reinforced Embankment (SFH, App. E)"]
[null,null,null,null,null,null,null,null,"R-5","Construction Expedient"]
["NTPEP Program:",null,null,null,null,"NTPEP ID:",null,null,null,null,{"$f":"_xlfn.IFS(D46=\"GTX\",HYPERLINK(\"https://data.ntpep.org/GTX/Products/ViewProduct/?id=\"&I46,\"NTPEP Link\"),D46=\"REGEO\",HYPERLINK(\"https://data.ntpep.org/REGEO/Products/ViewProduct/?id=\"&I46,\"NTPEP Link\"),D46=\"SSGEO\",HYPERLINK(\"https://data.ntpep.org/SSGEO/Products/ViewProduct/?id=\"&I46,\"NTPEP Link\"),OR(D46=\"\",D46=\"N/A\",I46=\"\"),\"\")","v":""}]
["Mnftr's. Technical Data Sheet Link:"]
[null,null,null,null,null,null,null,null,null,null,null,null,null,null,null,null,null,null,null,null,null,null,null,null,null,null,null,null,null,null,null,null,null,null,null,null,null,null,null,null,null,"Attach product data sheet, certified independent test results for all applicable parameters, photographs of the label that includes Roll and Lot #, Product Name, Production date, NTPEP ID, and \"NTPEP Listed\" Statement."]
[null,null,null,null,null,null,null,null,null,null,null,null,null,null,null,null,null,null,null,null,null,null,null,null,null,null,null,null,null,null,null,null,null,null,null,null,null,null,null,null,null,"Attach private label/converter agreement letter from the source manufacturer, product data sheet, certified independent test results for all applicable parameters, photographs of the label that includes Roll and Lot #, Product Name, Production date, NTPEP ID, and \"NTPEP Listed\" Statement."]
[]
[]
[]
[]
[]
[]
[]
[null,null,null,null,"Affix photographs of the product"]
[]
[]
[]
[]
[]
[]
[]
[]
[]
[]
[]
[]
[]
[]
[]
[]
[null,null,null,null,"Affix photographs of the label that includes Roll # and Lot #"]

{"sheet":"StrGeogrid","index":3,"n_rows":78,"n_cols":43,"rows_kept":78,"cut":false,"hidden":true,"merged":[[21,11,21,14],[30,15,31,17],[16,11,16,14],[20,8,20,10],[19,8,19,10],[18,8,18,10],[16,8,16,10],[23,0,24,3],[16,1,20,2],[21,15,21,17],[22,15,22,17],[22,8,22,10],[77,4,87,13],[29,4,29,7],[28,4,28,7],[27,4,27,7],[26,4,26,7],[30,11,31,14],[35,9,35,17],[38,9,38,17],[37,9,37,17],[36,9,36,17],[39,5,39,7],[39,8,39,9],[39,10,39,17],[28,8,28,10],[27,8,27,10],[26,8,26,10],[34,9,34,17],[33,9,33,17],[31,4,31,7],[30,4,30,7],[26,11,29,14],[29,8,29,10],[33,0,38,7],[56,4,66,13],[25,8,25,10],[24,8,24,10],[23,8,23,10],[26,0,27,3],[28,0,29,3],[40,0,40,5],[40,6,40,17],[31,8,31,10],[30,8,30,10],[30,0,31,3],[39,0,39,2],[39,3,39,4],[24,4,24,7],[23,4,23,7],[23,11,25,14],[23,15,24,17],[25,15,25,17],[32,8,32,17],[32,0,32,7],[25,0,25,7],[26,15,29,17],[5,22,6,22],[5,23,6,39],[7,22,8,22],[7,23,8,39],[7,19,8,19],[7,20,8,20],[5,13,5,17],[15,27,15,28],[17,24,17,26],[17,27,17,28],[14,24,14,26],[15,24,15,26],[5,19,5,20],[16,27,16,28],[14,27,14,28],[17,11,17,14],[8,11,8,14],[8,15,8,17],[11,15,20,17],[16,24,16,26],[22,11,22,14],[10,11,10,14],[10,15,10,17],[9,11,9,14],[9,15,9,17],[9,8,9,10],[10,8,10,10],[21,8,21,10],[21,0,21,7],[14,8,14,10],[13,8,13,10],[12,8,12,10],[20,3,20,7],[19,3,19,7],[17,3,17,7],[16,3,16,7],[15,3,15,7],[14,3,14,7],[13,3,13,7],[12,3,12,7],[15,8,15,10],[11,1,15,2],[22,0,22,7],[11,0,20,0],[0,41,0,42],[1,0,1,17],[2,0,2,1],[2,2,2,3],[2,4,2,6],[2,12,2,14],[2,15,2,17],[2,7,2,11],[1,22,1,39],[2,22,4,22],[2,23,4,39],[3,0,3,1],[3,2,3,5],[3,6,3,7],[3,8,3,12],[3,13,3,14],[4,0,4,17],[3,15,3,17],[8,8,8,10],[8,0,8,7],[12,11,12,14],[18,11,20,14],[13,11,15,14],[11,11,11,14],[11,8,11,10],[11,3,11,7],[0,0,0,17],[7,0,7,17],[5,0,5,2],[5,3,5,9],[5,10,5,12],[6,0,6,9],[6,10,6,11],[6,12,6,13],[6,14,6,15],[6,16,6,17],[10,0,10,7],[9,0,9,7],[18,3,18,7],[17,8,17,10]]}
["Woven or Extruded Geogrid ",null,null,null,null,null,null,null,null,null,null,null,null,null,null,null,null,null,null,null,null,null,null,null,null,null,null,null,null,null,null,null,null,null,null,null,null,null,null,null,null,"R Type (True/False)"]
["Company and Contact Information",null,null,null,null,null,null,null,null,null,null,null,null,null,null,null,null,null,null,null,null,null,"Notes",null,null,null,null,null,null,null,null,null,null,null,null,null,null,null,null,null,null,"R-1",false]
["App. Date:",null,null,null,"Company Name:",null,null,null,null,null,null,null,"Company Type:",null,null,null,null,null,null,null,null,null,1,{"$f":"IF(AND(P3=\"Manufacturer\",Q7=\"Uni-axial\"),AP48,IF(AND(P3=\"Manufacturer\",Q7=\"Bi-axial\"),AP48,IF(AND(P3<>\"Manufacturer\",Q7=\"Uni-axial\"),AP49,IF(AND(P3<>\"Manufacturer\",Q7=\"Bi-axial\"),AP49,\"\"))))","v":""},null,null,null,null,null,null,null,null,null,null,null,null,null,null,null,null,null,"R-2",false]
["Contact:",null,null,null,null,null,"E-mail:",null,null,null,null,null,null,"Phone:",null,null,null,null,null,null,null,null,null,null,null,null,null,null,null,null,null,null,null,null,null,null,null,null,null,null,null,"R-3",false]
["Product Information",null,null,null,null,null,null,null,null,null,null,null,null,null,null,null,null,null,null,null,null,null,null,null,null,null,null,null,null,null,null,null,null,null,null,null,null,null,null,null,null,"R-4",false]
["Product Name:",null,null,null,null,null,null,null,null,null,"Prod. Structure:",null,null,null,null,null,null,null,null,"Note: Red indicates missing data",null,null,2,{"$f":"IF(AQ2=FALSE,\"\",IF(AND($AQ$2=TRUE,I15<4800,I20<4800),\"Doesn't meet the minimum ultimate tensile strength requirements for R-1 structural type application (GRS IBS).\",\"\"))","v":""},null,null,null,null,null,null,null,null,null,null,null,null,null,null,null,null,null,"R-5",false]
["Structural Type(s) Request:",null,null,null,null,null,null,null,null,null,"On NTPEP:",null,null,null,"Axial Type:",null,null,null,null,null,null,null,null,null,null,null,null,null,null,null,null,null,null,null,null,null,null,null,null,null,null,null,{"$f":"IF(AND(AQ2=FALSE,AQ3=FALSE,AQ4=FALSE,AQ5=FALSE,AQ6=FALSE),\"Missing\",\"Good\")","v":"Missing"}]
["Specs 985 Physical Requirements (Test Results)",null,null,null,null,null,null,null,null,null,null,null,null,null,null,null,null,null,null,"Independent Lab Mean Value","Report Page #",null,3,"Other:"]
["Property Test Method",null,null,null,null,null,null,null,"MARV/Design Value",null,null,"Structural App. Type",null,null,null,"Test Method"]
["UV Stability (Min. Retained Strength @ 500 hrs.)",null,null,null,null,null,null,null,null,null,null,"R-3",null,null,null,"ASTM D4355",null,null,null,null,null,null,null,null,null,null,null,null,null,null,null,null,null,null,null,null,null,null,null,null,null,{"$f":"IF(AND($AQ$4=TRUE,ISBLANK(I10)),\"Missing\",\"Good\")","v":"Good"},{"$f":"IF(AND($AQ$4=TRUE,ISBLANK(T10)),\"Missing\",\"Good\")","v":"Good"}]
["Aperture Size MD  x XD (in x In)",null,null,null,null,null,null,null,null,null,null,"R-1,2,3,4,5",null,null,null,"-",null,null,null,null,null,null,null,null,null,null,null,null,null,null,null,null,null,null,null,null,null,null,null,null,null,{"$f":"IF(ISBLANK(I11),\"Missing\",\"Good\")","v":"Missing"},{"$f":"IF(ISBLANK(T11),\"Missing\",\"Good\")","v":"Missing"}]
["Tensile Strength (lbs/ft)","Machine Direction",null,"2% Strain",null,null,null,null,null,null,null,"R-1,3",null,null,null,"ASTM D6637",null,null,null,null,null,null,null,null,null,null,null,null,null,null,null,null,null,null,null,null,null,null,null,null,null,{"$f":"IF(AND(OR($AQ$2=TRUE,$AQ$4=TRUE),ISBLANK(I12)),\"Missing\",\"Good\")","v":"Good"},{"$f":"IF(AND(OR($AQ$2=TRUE,$AQ$4=TRUE),ISBLANK(T12)),\"Missing\",\"Good\")","v":"Good"}]
[null,null,null,"5% Strain",null,null,null,null,null,null,null,"R-2,3,4,5",null,null,null,null,null,null,null,null,null,null,null,null,null,null,null,null,null,null,null,null,null,null,null,null,null,null,null,null,null,{"$f":"IF(AND(OR($AQ$3=TRUE,$AQ$4=TRUE,$AQ$5=TRUE,$AQ$6=TRUE),ISBLANK(I13)),\"Missing\",\"Good\")","v":"Good"},{"$f":"IF(AND(OR($AQ$3=TRUE,$AQ$4=TRUE,$AQ$5=TRUE,$AQ$6=TRUE),ISBLANK(T13)),\"Missing\",\"Good\")","v":"Good"}]
[null,null,null,"10% Strain",null,null,null,null,null,null,null,"R-1,2,3,4,5",null,null,null,null,null,null,null,null,null,null,null,null,null,null,null,null,null,null,null,null,null,null,null,null,null,null,null,null,null,{"$f":"IF(ISBLANK(I14),\"Missing\",\"Good\")","v":"Missing"},{"$f":"IF(ISBLANK(T14),\"Missing\",\"Good\")","v":"Missing"}]
[null,null,null,"Ultimate (Tult)",null,null,null,null,null,null,null,null,null,null,null,null,null,null,null,null,null,null,null,null,"Calculate?",null,null,"Tcreep",null,null,null,null,null,null,null,null,null,null,null,null,null,{"$f":"IF(ISBLANK(I15),\"Missing\",\"Good\")","v":"Missing"},{"$f":"IF(ISBLANK(T15),\"Missing\",\"Good\")","v":"Missing"}]
[null,null,null,"Strain @ Tult",null,null,null,null,null,null,null,null,null,null,null,null,null,null,null,null,null,null,null,null,"Weakest ",null,null,{"$f":"IF(AND(ISBLANK(I15),ISBLANK(I20)),\"\",IF(AND(ISBLANK(I15),ISBLANK(I20)=FALSE),\"XD\",IF(AND(ISBLANK(I15)=FALSE,ISBLANK(I20)),\"MD\",IF(I15<=I20,\"MD\",\"XD\"))))","v":""},null,null,null,null,null,null,null,null,null,null,null,null,null,{"$f":"IF(ISBLANK(I16),\"Missing\",\"Good\")","v":"Missing"},{"$f":"IF(ISBLANK(T16),\"Missing\",\"Good\")","v":"Missing"}]
[null,"Cross \nDirection",null,"2% Strain",null,null,null,null,null,null,null,"R-1,3",null,null,null,null,null,null,null,null,null,null,null,null,"MARV",null,null,{"$f":"IF(AND(AB15=\"Creep RF\",AB16=\"MD\"),I15/I24,IF(AND(AB15=\"Creep RF\",AB16=\"XD\"),I20/I25,IF(AND(AB15=\"Tcreep\",AB16=\"MD\"),I15/I26,IF(AND(AB15=\"Tcreep\",AB16=\"XD\"),I20/I26,\"\"))))","v":""},null,null,null,null,null,null,null,null,null,null,null,null,null,{"$f":"IF($Q$7=\"Uni-axial\",\"Good\",IF(AND(OR($AQ$2=TRUE,$AQ$4=TRUE),ISBLANK(I17)),\"Missing\",\"Good\"))","v":"Good"},{"$f":"IF($Q$7=\"Uni-axial\",\"Good\",IF(AND(OR($AQ$2=TRUE,$AQ$4=TRUE),ISBLANK(T17)),\"Missing\",\"Good\"))","v":"Good"}]
[null,null,null,"5% Strain",null,null,null,null,null,null,null,"R-2,3,4,5",null,null,null,null,null,null,null,null,null,null,null,null,"Independent",null,null,{"$f":"IF(AND(AB15=\"Creep RF\",AB16=\"MD\"),T15/T24,IF(AND(AB15=\"Creep RF\",AB16=\"XD\"),T20/T25,IF(AND(AB15=\"Tcreep\",AB16=\"MD\"),T15/T26,IF(AND(AB15=\"Tcreep\",AB16=\"XD\"),T20/T26,\"\"))))","v":""},null,null,null,null,null,null,null,null,null,null,null,null,null,{"$f":"IF($Q$7=\"Uni-axial\",\"Good\",IF(AND(OR($AQ$3=TRUE,$AQ$4=TRUE,$AQ$5=TRUE,$AQ$6=TRUE),ISBLANK(I18)),\"Missing\",\"Good\"))","v":"Good"},{"$f":"IF($Q$7=\"Uni-axial\",\"Good\",IF(AND(OR($AQ$3=TRUE,$AQ$4=TRUE,$AQ$5=TRUE,$AQ$6=TRUE),ISBLANK(T18)),\"Missing\",\"Good\"))","v":"Good"}]
[null,null,null,"10% Strain",null,null,null,null,null,null,null,"R-1,2,3,4,5",null,null,null,null,null,null,null,null,null,null,null,null,null,null,null,null,null,null,null,null,null,null,null,null,null,null,null,null,null,{"$f":"IF($Q$7=\"Uni-axial\",\"Good\",IF(ISBLANK(I19),\"Missing\",\"Good\"))","v":"Missing"},{"$f":"IF($Q$7=\"Uni-axial\",\"Good\",IF(ISBLANK(T19),\"Missing\",\"Good\"))","v":"Missing"}]
[null,null,null,"Ultimate (Tult)",null,null,null,null,null,null,null,null,null,null,null,null,null,null,null,null,null,null,"*Rename the excel sheet if needed to print the appropriate product name in the footer area",null,null,null,null,null,null,null,null,null,null,null,null,null,null,null,null,null,null,{"$f":"IF($Q$7=\"Uni-axial\",\"Good\",IF(ISBLANK(I20),\"Missing\",\"Good\"))","v":"Missing"},{"$f":"IF($Q$7=\"Uni-axial\",\"Good\",IF(ISBLANK(T20),\"Missing\",\"Good\"))","v":"Missing"}]
[null,null,null,"Strain @ Tult",null,null,null,null,null,null,null,null,null,null,null,null,null,null,null,null,null,null,"*When uploading this file to PATH, convert this file from .xlsm (macro-enabled) to .xslx (normal excel file) to prevent uploading error",null,null,null,null,null,null,null,null,null,null,null,null,null,null,null,null,null,null,{"$f":"IF($Q$7=\"Uni-axial\",\"Good\",IF(ISBLANK(I21),\"Missing\",\"Good\"))","v":"Missing"},{"$f":"IF($Q$7=\"Uni-axial\",\"Good\",IF(ISBLANK(T21),\"Missing\",\"Good\"))","v":"Missing"}]
["Coefficient of Interaction, Ci (dim.)",null,null,null,null,null,null,null,null,null,null,"R-1,2,3",null,null,null,"ASTM D5321/D6706",null,null,null,null,null,null,null,null,null,null,null,null,null,null,null,null,null,null,null,null,null,null,null,null,null,{"$f":"IF(AND(OR($AQ$2=TRUE,$AQ$3=TRUE,$AQ$4=TRUE),ISBLANK(I22)),\"Missing\",\"Good\")","v":"Good"},{"$f":"IF(AND(OR($AQ$2=TRUE,$AQ$3=TRUE,$AQ$4=TRUE),ISBLANK(T22)),\"Missing\",\"Good\")","v":"Good"}]
["Scale Correction Factor, α (dim.)",null,null,null,null,null,null,null,null,null,null,"R-3",null,null,null,"ASTM D6706",null,null,null,null,null,null,null,null,null,null,null,null,null,null,null,null,null,null,null,null,null,null,null,null,null,{"$f":"IF(AND(OR($AQ$2=TRUE,$AQ$4=TRUE),ISBLANK(I23)),\"Missing\",\"Good\")","v":"Good"},{"$f":"IF(AND(OR($AQ$2=TRUE,$AQ$4=TRUE),ISBLANK(T23)),\"Missing\",\"Good\")","v":"Good"}]
["Creep Resistance -Tcreep (lbs/ft)",null,null,null,"Machine Direction",null,null,null,null,null,null,"R-2,3",null,null,null,"ASTM D5262",null,null,null,null,null,null,null,null,null,null,null,null,null,null,null,null,null,null,null,null,null,null,null,null,null,{"$f":"IF(AND(OR($AQ$3=TRUE,$AQ$4=TRUE),ISBLANK(I24)),\"Missing\",\"Good\")","v":"Good"},{"$f":"IF(AND(OR($AQ$3=TRUE,$AQ$4=TRUE),ISBLANK(T24)),\"Missing\",\"Good\")","v":"Good"}]
[null,null,null,null,"Cross Direction",null,null,null,null,null,null,null,null,null,null,null,null,null,null,null,null,null,null,null,null,null,null,null,null,null,null,null,null,null,null,null,null,null,null,null,null,{"$f":"IF($Q$7=\"Uni-axial\",\"Good\",IF(AND(OR($AQ$3=TRUE,$AQ$4=TRUE),ISBLANK(I25)),\"Missing\",\"Good\"))","v":"Good"},{"$f":"IF($Q$7=\"Uni-axial\",\"Good\",IF(AND(OR($AQ$3=TRUE,$AQ$4=TRUE),ISBLANK(T25)),\"Missing\",\"Good\"))","v":"Good"}]
["Creep Reduction Factor (Tult/Tcreep)",null,null,null,null,null,null,null,null,null,null,null,null,null,null,"--",null,null,null,null,null,null,null,null,null,null,null,null,null,null,null,null,null,null,null,null,null,null,null,null,null,{"$f":"IF(AND(OR($AQ$3=TRUE,$AQ$4=TRUE),ISBLANK(I26)),\"Missing\",\"Good\")","v":"Good"},{"$f":"IF(AND(OR($AQ$3=TRUE,$AQ$4=TRUE),ISBLANK(T26)),\"Missing\",\"Good\")","v":"Good"}]
["Installation Damage (RFID)",null,null,null,"Sand",null,null,null,null,null,null,"R-2,3,4",null,null,null,"AASHTO R69",null,null,null,null,null,null,null,null,null,null,null,null,null,null,null,null,null,null,null,null,null,null,null,null,null,{"$f":"IF(AND(OR($AQ$3=TRUE,$AQ$4=TRUE,$AQ$5=TRUE),ISBLANK(I27)),\"Missing\",\"Good\")","v":"Good"},{"$f":"IF(AND(OR($AQ$3=TRUE,$AQ$4=TRUE,$AQ$5=TRUE),ISBLANK(T27)),\"Missing\",\"Good\")","v":"Good"}]
[null,null,null,null,"Limestone",null,null,null,null,null,null,null,null,null,null,null,null,null,null,null,null,null,null,null,null,null,null,null,null,null,null,null,null,null,null,null,null,null,null,null,null,{"$f":"IF(AND(OR($AQ$3=TRUE,$AQ$4=TRUE,$AQ$5=TRUE),ISBLANK(I28)),\"Missing\",\"Good\")","v":"Good"},{"$f":"IF(AND(OR($AQ$3=TRUE,$AQ$4=TRUE,$AQ$5=TRUE),ISBLANK(T28)),\"Missing\",\"Good\")","v":"Good"}]
["Durability (RFD)",null,null,null,"Chemical",null,null,null,null,null,null,null,null,null,null,null,null,null,null,null,null,null,null,null,null,null,null,null,null,null,null,null,null,null,null,null,null,null,null,null,null,{"$f":"IF(AND(OR($AQ$3=TRUE,$AQ$4=TRUE,$AQ$5=TRUE),ISBLANK(I29)),\"Missing\",\"Good\")","v":"Good"},{"$f":"IF(AND(OR($AQ$3=TRUE,$AQ$4=TRUE,$AQ$5=TRUE),ISBLANK(T29)),\"Missing\",\"Good\")","v":"Good"}]
[null,null,null,null,"Biological",null,null,null,null,null,null,null,null,null,null,null,null,null,null,null,null,null,null,null,null,null,null,null,null,null,null,null,null,null,null,null,null,null,null,null,null,{"$f":"IF(AND(OR($AQ$3=TRUE,$AQ$4=TRUE,$AQ$5=TRUE),ISBLANK(I30)),\"Missing\",\"Good\")","v":"Good"},{"$f":"IF(AND(OR($AQ$3=TRUE,$AQ$4=TRUE,$AQ$5=TRUE),ISBLANK(T30)),\"Missing\",\"Good\")","v":"Good"}]
["Joint Strength (RFj)",null,null,null,"Mechanical",null,null,null,null,null,null,"R-2,3",null,null,null,"GRI: GG4(a) & GG4(b)",null,null,null,null,null,null,null,null,null,null,null,null,null,null,null,null,null,null,null,null,null,null,null,null,null,{"$f":"IF(AND(OR($AQ$3=TRUE,$AQ$4=TRUE),ISBLANK(I31)),\"Missing\",\"Good\")","v":"Good"},{"$f":"IF(AND(OR($AQ$3=TRUE,$AQ$4=TRUE),ISBLANK(T31)),\"Missing\",\"Good\")","v":"Good"}]
[null,null,null,null,"Sewn",null,null,null,null,null,null,null,null,null,null,null,null,null,null,null,null,null,null,null,null,null,null,null,null,null,null,null,null,null,null,null,null,null,null,null,null,{"$f":"IF(AND(OR($AQ$3=TRUE,$AQ$4=TRUE),ISBLANK(I32)),\"Missing\",\"Good\")","v":"Good"},{"$f":"IF(AND(OR($AQ$3=TRUE,$AQ$4=TRUE),ISBLANK(T32)),\"Missing\",\"Good\")","v":"Good"}]
["Limitations/Notes",null,null,null,null,null,null,null,"Structural Application"]
[null,null,null,null,null,null,null,null,"Type","Description"]
[null,null,null,null,null,null,null,null,"R-1","Geosynthetic Reinforced Soil (GRS-IBS)"]
[null,null,null,null,null,null,null,null,"R-2","Reinforcement of foundations over soft soils (FDM Ch.263)"]
[null,null,null,null,null,null,null,null,"R-3","Reinforced Soil Slopes (FDM, Ch.263)"]
[null,null,null,null,null,null,null,null,"R-4","Reinforced Embankment (SFH, App. E)"]
[null,null,null,null,null,null,null,null,"R-5","Construction Expedient"]
["NTPEP Program:",null,null,null,null,"NTPEP ID:",null,null,null,null,{"$f":"_xlfn.IFS(D40=\"GTX\",HYPERLINK(\"https://data.ntpep.org/GTX/Products/ViewProduct/?id=\"&I40,\"NTPEP Link\"),D40=\"REGEO\",HYPERLINK(\"https://data.ntpep.org/REGEO/Products/ViewProduct/?id=\"&I40,\"NTPEP Link\"),D40=\"SSGEO\",HYPERLINK(\"https://data.ntpep.org/SSGEO/Products/ViewProduct/?id=\"&I40,\"NTPEP Link\"),OR(D40=\"\",D40=\"N/A\",I40=\"\"),\"\")","v":""}]
["Mnftr's. Technical Data Sheet Link:"]
[]
[]
[]
[]
[]
[]
[null,null,null,null,null,null,null,null,null,null,null,null,null,null,null,null,null,null,null,null,null,null,null,null,null,null,null,null,null,null,null,null,null,null,null,null,null,null,null,null,null,"Attach product data sheet, certified independent test results for all applicable parameters, photographs of the label that includes Roll and Lot #, Product Name, Production date, NTPEP ID, and \"NTPEP Listed\" Statement."]
[null,null,null,null,null,null,null,null,null,null,null,null,null,null,null,null,null,null,null,null,null,null,null,null,null,null,null,null,null,null,null,null,null,null,null,null,null,null,null,null,null,"Attach private label/converter agreement letter from the source manufacturer, product data sheet, certified independent test results for all applicable parameters, photographs of the label that includes Roll and Lot #, Product Name, Production date, NTPEP ID, and \"NTPEP Listed\" Statement."]
[]
[]
[]
[]
[]
[]
[]
[null,null,null,null,"Affix photographs of the product"]
[]
[]
[]
[]
[]
[]
[]
[]
[]
[]
[]
[]
[]
[]
[]
[]
[]
[]
[]
[]
[null,null,null,null,"Affix photographs of the label that includes Roll # and Lot #"]